[Event "Early-Titled-Tuesday-Blitz-January-30-2024"]
[Site "Chess.com"]
[Date "2024.01.30"]
[Round "1"]
[White "stepanosinovsky"]
[Black "tuschessCM1"]
[Result "0-1"]
[WhiteElo "2380"]
[BlackElo "2703"]
[TimeControl "180+1"]
[EndTime "8:07:40 PST"]
[Termination "tuschessCM1 won on time"]

1. Nf3 {[%clk 0:02:52.6]} 1... Nf6 {[%clk 0:02:21.7]} 2. g3 {[%clk 0:02:53.5]}
2... g6 {[%clk 0:02:19.4]} 3. Bg2 {[%clk 0:02:54.4]} 3... Bg7 {[%clk 0:02:19.6]}
4. O-O {[%clk 0:02:55.3]} 4... O-O {[%clk 0:02:20.1]} 5. d3 {[%clk 0:02:56.2]}
5... d6 {[%clk 0:02:20.7]} 6. e4 {[%clk 0:02:56.9]} 6... e5 {[%clk 0:02:20.9]}
7. Nbd2 {[%clk 0:02:55.8]} 7... Nc6 {[%clk 0:02:20.8]} 8. Ne1 {[%clk 0:02:48.5]}
8... d5 {[%clk 0:02:12.1]} 9. c3 {[%clk 0:02:39.3]} 9... h6 {[%clk 0:02:05]} 10.
Qb3 {[%clk 0:02:32.2]} 10... dxe4 {[%clk 0:01:48.8]} 11. dxe4 {[%clk 0:02:21.6]}
11... Nb8 {[%clk 0:01:44.1]} 12. Nc4 {[%clk 0:02:15.8]} 12... Nbd7 {[%clk
0:01:42.7]} 13. Na5 {[%clk 0:01:50.3]} 13... c6 {[%clk 0:01:35.4]} 14. Qa3
{[%clk 0:01:32.4]} 14... Re8 {[%clk 0:01:31.2]} 15. Nc2 {[%clk 0:01:25.1]} 15...
Bf8 {[%clk 0:01:23.8]} 16. b4 {[%clk 0:01:24.2]} 16... b6 {[%clk 0:00:56.3]} 17.
Nc4 {[%clk 0:00:34.9]} 17... a5 {[%clk 0:00:53.4]} 18. Qb2 {[%clk 0:00:34.4]}
18... Ba6 {[%clk 0:00:49.6]} 19. N2e3 {[%clk 0:00:29.7]} 19... Qc7 {[%clk
0:00:32.3]} 20. a4 {[%clk 0:00:28.3]} 20... axb4 {[%clk 0:00:26.3]} 21. cxb4
{[%clk 0:00:28.3]} 21... b5 {[%clk 0:00:26.1]} 22. axb5 {[%clk 0:00:26.4]} 22...
Bxb5 {[%clk 0:00:27]} 23. Rxa8 {[%clk 0:00:25.4]} 23... Rxa8 {[%clk 0:00:27.9]}
24. Bd2 {[%clk 0:00:24.6]} 24... Nb6 {[%clk 0:00:15]} 25. Rc1 {[%clk 0:00:20.5]}
25... Nxc4 {[%clk 0:00:14.5]} 26. Nxc4 {[%clk 0:00:19.9]} 26... Nd7 {[%clk
0:00:15.4]} 27. Na5 {[%clk 0:00:18.8]} 27... Rd8 {[%clk 0:00:14.1]} 28. Be1
{[%clk 0:00:17.8]} 28... Nb6 {[%clk 0:00:14.6]} 29. Bf1 {[%clk 0:00:17.6]} 29...
Qd7 {[%clk 0:00:13.2]} 30. Kg2 {[%clk 0:00:16.3]} 30... Bxf1+ {[%clk 0:00:12.8]}
31. Kxf1 {[%clk 0:00:15.8]} 31... Rc8 {[%clk 0:00:10.7]} 32. Qc2 {[%clk
0:00:13.9]} 32... c5 {[%clk 0:00:10.3]} 33. bxc5 {[%clk 0:00:13.5]} 33... Rxc5
{[%clk 0:00:11.2]} 34. Qb1 {[%clk 0:00:13.3]} 34... Rxc1 {[%clk 0:00:09.2]} 35.
Qxc1 {[%clk 0:00:14.2]} 35... Qd3+ {[%clk 0:00:09.9]} 36. Kg1 {[%clk 0:00:14.3]}
36... Qxe4 {[%clk 0:00:10.8]} 37. Nc6 {[%clk 0:00:14.1]} 37... Nd5 {[%clk
0:00:10.8]} 38. h3 {[%clk 0:00:10.4]} 38... Nf6 {[%clk 0:00:09.8]} 39. Nb4
{[%clk 0:00:09.4]} 39... Bxb4 {[%clk 0:00:09.7]} 40. Qc8+ {[%clk 0:00:07.7]}
40... Kg7 {[%clk 0:00:09.6]} 41. Bxb4 {[%clk 0:00:07.3]} 41... Qxb4 {[%clk
0:00:10.5]} 0-1

[Event "Early-Titled-Tuesday-Blitz-January-30-2024"]
[Site "Chess.com"]
[Date "2024.01.30"]
[Round "1"]
[White "PavelShkapenko"]
[Black "marik_spb"]
[Result "1-0"]
[WhiteElo "2753"]
[BlackElo "2414"]
[TimeControl "180+1"]
[EndTime "8:07:41 PST"]
[Termination "PavelShkapenko won on time"]

1. e4 {[%clk 0:03:00.9]} 1... e6 {[%clk 0:02:51.9]} 2. d4 {[%clk 0:02:57.4]}
2... d5 {[%clk 0:02:52.8]} 3. exd5 {[%clk 0:02:57.7]} 3... exd5 {[%clk
0:02:47.4]} 4. Nf3 {[%clk 0:02:58.6]} 4... Nf6 {[%clk 0:02:47]} 5. Bd3 {[%clk
0:02:58]} 5... c5 {[%clk 0:02:47.1]} 6. O-O {[%clk 0:02:57.5]} 6... c4 {[%clk
0:02:41.3]} 7. Re1+ {[%clk 0:02:57.4]} 7... Be7 {[%clk 0:02:41.2]} 8. Bf1 {[%clk
0:02:58.3]} 8... O-O {[%clk 0:02:41.1]} 9. b3 {[%clk 0:02:58.8]} 9... cxb3
{[%clk 0:02:37.5]} 10. axb3 {[%clk 0:02:59.1]} 10... Nc6 {[%clk 0:02:37.8]} 11.
Ba3 {[%clk 0:02:43.7]} 11... Bxa3 {[%clk 0:02:33.6]} 12. Nxa3 {[%clk 0:02:43.4]}
12... Bg4 {[%clk 0:02:33.9]} 13. c3 {[%clk 0:02:33.2]} 13... Ne4 {[%clk
0:02:20.9]} 14. Qd3 {[%clk 0:02:33]} 14... Re8 {[%clk 0:02:18]} 15. Nd2 {[%clk
0:02:25.9]} 15... Bf5 {[%clk 0:01:55.9]} 16. Nxe4 {[%clk 0:02:24.7]} 16... Rxe4
{[%clk 0:01:54.6]} 17. Rxe4 {[%clk 0:02:22.5]} 17... Bxe4 {[%clk 0:01:55.5]} 18.
Qg3 {[%clk 0:02:16.7]} 18... Qb6 {[%clk 0:01:44.4]} 19. Nb5 {[%clk 0:02:10]}
19... a6 {[%clk 0:01:40.8]} 20. f3 {[%clk 0:02:02.1]} 20... Re8 {[%clk
0:01:28.8]} 21. Qc7 {[%clk 0:01:30.3]} 21... Qxc7 {[%clk 0:01:21.1]} 22. Nxc7
{[%clk 0:01:30.3]} 22... Rc8 {[%clk 0:01:14.6]} 23. fxe4 {[%clk 0:01:28.8]}
23... Rxc7 {[%clk 0:01:15.1]} 24. exd5 {[%clk 0:01:29.5]} 24... Nd8 {[%clk
0:01:15.7]} 25. c4 {[%clk 0:01:29]} 25... Kf8 {[%clk 0:01:14.4]} 26. g3 {[%clk
0:01:13]} 26... Re7 {[%clk 0:01:03]} 27. Kf2 {[%clk 0:01:11.2]} 27... f6 {[%clk
0:01:00.9]} 28. Bg2 {[%clk 0:01:09.2]} 28... h5 {[%clk 0:00:51.8]} 29. c5 {[%clk
0:01:08.5]} 29... Rd7 {[%clk 0:00:24.8]} 30. b4 {[%clk 0:01:06.8]} 30... g5
{[%clk 0:00:13.4]} 31. Re1 {[%clk 0:01:01]} 31... Re7 {[%clk 0:00:12.8]} 32.
Rxe7 {[%clk 0:00:59.9]} 32... Kxe7 {[%clk 0:00:13.7]} 33. d6+ {[%clk 0:01:00.5]}
33... Ke6 {[%clk 0:00:14.2]} 34. Ke3 {[%clk 0:00:57.9]} 34... f5 {[%clk
0:00:14.2]} 35. Kd3 {[%clk 0:00:45.1]} 35... Kf6 {[%clk 0:00:12.6]} 36. Kc4
{[%clk 0:00:44.1]} 36... Ke6 {[%clk 0:00:13]} 37. Bd5+ {[%clk 0:00:43.3]} 37...
Kd7 {[%clk 0:00:09.4]} 38. b5 {[%clk 0:00:42.2]} 38... axb5+ {[%clk 0:00:09.3]}
39. Kxb5 {[%clk 0:00:42.9]} 39... Nc6 {[%clk 0:00:08.8]} 40. Bxc6+ {[%clk
0:00:30.2]} 40... bxc6+ {[%clk 0:00:09.7]} 41. Kc4 {[%clk 0:00:30.8]} 41... f4
{[%clk 0:00:09.9]} 42. gxf4 {[%clk 0:00:30.7]} 42... g4 {[%clk 0:00:09.9]} 43.
Kd3 {[%clk 0:00:31]} 43... h4 {[%clk 0:00:10.3]} 44. Ke2 {[%clk 0:00:31.1]}
44... g3 {[%clk 0:00:10.9]} 45. hxg3 {[%clk 0:00:30.9]} 45... hxg3 {[%clk
0:00:11.8]} 46. Kf3 {[%clk 0:00:31]} 1-0

[Event "Early-Titled-Tuesday-Blitz-January-30-2024"]
[Site "Chess.com"]
[Date "2024.01.30"]
[Round "1"]
[White "RamonManon0g"]
[Black "ansko1999"]
[Result "0-1"]
[WhiteElo "2393"]
[BlackElo "2717"]
[TimeControl "180+1"]
[EndTime "8:07:41 PST"]
[Termination "ansko1999 won by resignation"]

1. e4 {[%clk 0:03:00.9]} 1... e5 {[%clk 0:02:59.1]} 2. Nf3 {[%clk 0:03:00.1]}
2... Nc6 {[%clk 0:02:58.9]} 3. Bc4 {[%clk 0:03:00.3]} 3... Bc5 {[%clk
0:02:57.9]} 4. c3 {[%clk 0:03:00.2]} 4... Nf6 {[%clk 0:02:57.8]} 5. d4 {[%clk
0:03:00.4]} 5... exd4 {[%clk 0:02:58.7]} 6. e5 {[%clk 0:03:01]} 6... d5 {[%clk
0:02:58.4]} 7. Bb5 {[%clk 0:03:01.4]} 7... Ne4 {[%clk 0:02:59]} 8. cxd4 {[%clk
0:03:01.6]} 8... Bb6 {[%clk 0:02:59.7]} 9. Nc3 {[%clk 0:03:01.7]} 9... O-O
{[%clk 0:02:59.5]} 10. Be3 {[%clk 0:03:02]} 10... Bg4 {[%clk 0:02:58.7]} 11. Qc2
{[%clk 0:03:02.3]} 11... Nxc3 {[%clk 0:02:54.4]} 12. bxc3 {[%clk 0:02:58.5]}
12... f6 {[%clk 0:02:25]} 13. exf6 {[%clk 0:02:53]} 13... Qxf6 {[%clk
0:02:15.9]} 14. Ng5 {[%clk 0:02:33.2]} 14... Bf5 {[%clk 0:02:05.7]} 15. Qb3
{[%clk 0:02:28.9]} 15... Rad8 {[%clk 0:01:56.7]} 16. Bxc6 {[%clk 0:02:18.2]}
16... Qxc6 {[%clk 0:01:49.3]} 17. O-O {[%clk 0:02:13]} 17... h6 {[%clk
0:01:38.1]} 18. Nf3 {[%clk 0:02:11.7]} 18... Qe6 {[%clk 0:01:12.9]} 19. Ne5
{[%clk 0:02:04.7]} 19... c6 {[%clk 0:00:52.8]} 20. f4 {[%clk 0:02:01.5]} 20...
Be4 {[%clk 0:00:52]} 21. a4 {[%clk 0:01:53.5]} 21... Qc8 {[%clk 0:00:35.7]} 22.
a5 {[%clk 0:01:16.8]} 22... Bc7 {[%clk 0:00:34.8]} 23. a6 {[%clk 0:01:17.4]}
23... bxa6 {[%clk 0:00:13.7]} 24. Nxc6 {[%clk 0:01:15.7]} 24... Rd7 {[%clk
0:00:13.2]} 25. Nxa7 {[%clk 0:01:04.5]} 25... Qe8 {[%clk 0:00:10.5]} 26. Nc6
{[%clk 0:00:35.9]} 26... Qg6 {[%clk 0:00:09]} 27. Rf2 {[%clk 0:00:20.1]} 27...
Qxc6 {[%clk 0:00:09.4]} 28. h3 {[%clk 0:00:16.4]} 28... a5 {[%clk 0:00:09.4]}
29. Raf1 {[%clk 0:00:14.5]} 29... Rdf7 {[%clk 0:00:08.1]} 30. Qa3 {[%clk
0:00:11.4]} 30... Bd3 {[%clk 0:00:06.8]} 31. Re1 {[%clk 0:00:11]} 31... Bc4
{[%clk 0:00:07.2]} 32. Bd2 {[%clk 0:00:09.8]} 32... a4 {[%clk 0:00:07.3]} 33.
Re7 {[%clk 0:00:09.3]} 33... Bd6 {[%clk 0:00:07.1]} 34. Re6 {[%clk 0:00:08.4]}
34... Bxa3 {[%clk 0:00:05.9]} 35. Rxc6 {[%clk 0:00:08.9]} 35... Bb2 {[%clk
0:00:06.5]} 36. Ra6 {[%clk 0:00:08.9]} 36... a3 {[%clk 0:00:06.8]} 37. Ra5
{[%clk 0:00:08]} 37... a2 {[%clk 0:00:06.7]} 38. Be3 {[%clk 0:00:05.6]} 38...
a1=Q+ {[%clk 0:00:06.8]} 39. Rxa1 {[%clk 0:00:06.4]} 39... Bxa1 {[%clk
0:00:07.7]} 40. Bd2 {[%clk 0:00:06.4]} 40... Re7 {[%clk 0:00:07.8]} 41. Kh2
{[%clk 0:00:06.1]} 41... Rfe8 {[%clk 0:00:08.3]} 42. f5 {[%clk 0:00:06.6]} 42...
Re2 {[%clk 0:00:09]} 43. Kg3 {[%clk 0:00:07]} 43... Rxf2 {[%clk 0:00:08.9]} 44.
Kxf2 {[%clk 0:00:07.9]} 44... Re2+ {[%clk 0:00:09.3]} 45. Kf3 {[%clk 0:00:08.6]}
45... Rxd2 {[%clk 0:00:10.2]} 46. f6 {[%clk 0:00:09.3]} 46... gxf6 {[%clk
0:00:10.2]} 0-1

[Event "Early-Titled-Tuesday-Blitz-January-30-2024"]
[Site "Chess.com"]
[Date "2024.01.30"]
[Round "1"]
[White "Korchmar_Vasiliy"]
[Black "kaanadayhamle"]
[Result "1-0"]
[WhiteElo "2713"]
[BlackElo "2391"]
[TimeControl "180+1"]
[EndTime "8:07:43 PST"]
[Termination "Korchmar_Vasiliy won on time"]

1. e4 {[%clk 0:03:00.9]} 1... e5 {[%clk 0:02:59]} 2. Nf3 {[%clk 0:03:01.2]} 2...
Nc6 {[%clk 0:02:59.1]} 3. Bc4 {[%clk 0:03:01.8]} 3... Bc5 {[%clk 0:02:57.8]} 4.
c3 {[%clk 0:03:01.8]} 4... d6 {[%clk 0:02:57.6]} 5. d3 {[%clk 0:03:01.8]} 5...
Bg4 {[%clk 0:02:55.9]} 6. O-O {[%clk 0:02:56.2]} 6... h6 {[%clk 0:02:54.9]} 7.
Nbd2 {[%clk 0:02:55.3]} 7... Nf6 {[%clk 0:02:54.9]} 8. Re1 {[%clk 0:02:50.2]}
8... O-O {[%clk 0:02:52.5]} 9. Nf1 {[%clk 0:02:50.2]} 9... a5 {[%clk 0:02:46.2]}
10. h3 {[%clk 0:02:45.6]} 10... Be6 {[%clk 0:02:36.6]} 11. Bb5 {[%clk
0:02:45.3]} 11... Ne7 {[%clk 0:02:23.7]} 12. d4 {[%clk 0:02:43.5]} 12... exd4
{[%clk 0:02:23.5]} 13. cxd4 {[%clk 0:02:43.7]} 13... Bb4 {[%clk 0:02:22.2]} 14.
Re2 {[%clk 0:02:42.6]} 14... c6 {[%clk 0:02:16.6]} 15. Bd3 {[%clk 0:02:40.8]}
15... a4 {[%clk 0:02:07.4]} 16. a3 {[%clk 0:02:36.2]} 16... Bb3 {[%clk
0:02:07.4]} 17. Bc2 {[%clk 0:02:35]} 17... Bxc2 {[%clk 0:02:07.6]} 18. Qxc2
{[%clk 0:02:33.5]} 18... Ba5 {[%clk 0:02:07.8]} 19. Ng3 {[%clk 0:02:31.9]} 19...
Bc7 {[%clk 0:01:57.5]} 20. Nh4 {[%clk 0:02:21.5]} 20... Re8 {[%clk 0:01:15.6]}
21. Bd2 {[%clk 0:02:19.8]} 21... Qd7 {[%clk 0:01:08.1]} 22. Rae1 {[%clk
0:02:17.5]} 22... Bb6 {[%clk 0:01:07.2]} 23. Ngf5 {[%clk 0:02:10.7]} 23... Nxf5
{[%clk 0:01:03.7]} 24. Nxf5 {[%clk 0:02:11.6]} 24... d5 {[%clk 0:00:57.8]} 25.
e5 {[%clk 0:01:20]} 25... Ne4 {[%clk 0:00:52.4]} 26. g4 {[%clk 0:01:20.6]} 26...
Nxd2 {[%clk 0:00:25.7]} 27. Qxd2 {[%clk 0:01:20.5]} 27... Ba5 {[%clk 0:00:23]}
28. Qf4 {[%clk 0:01:16.6]} 28... Bxe1 {[%clk 0:00:20.5]} 29. Rxe1 {[%clk
0:01:17.5]} 29... Re6 {[%clk 0:00:20.1]} 30. Re3 {[%clk 0:01:15.9]} 30... Rae8
{[%clk 0:00:15.5]} 31. Rg3 {[%clk 0:01:15.9]} 31... Rg6 {[%clk 0:00:15.4]} 32.
h4 {[%clk 0:01:15.5]} 32... Qc7 {[%clk 0:00:08.3]} 33. h5 {[%clk 0:01:11.8]}
33... Rg5 {[%clk 0:00:05.4]} 34. Qd2 {[%clk 0:01:12.4]} 34... Qb6 {[%clk
0:00:04.2]} 35. f4 {[%clk 0:01:10.7]} 35... Rxf5 {[%clk 0:00:04.7]} 36. gxf5
{[%clk 0:01:11.6]} 36... Kf8 {[%clk 0:00:03.8]} 37. Kh2 {[%clk 0:00:56.1]} 37...
c5 {[%clk 0:00:03.5]} 38. Qg2 {[%clk 0:00:48.3]} 38... cxd4 {[%clk 0:00:01.8]}
39. Rxg7 {[%clk 0:00:48.2]} 39... Ke7 {[%clk 0:00:02.7]} 40. f6+ {[%clk
0:00:39.6]} 40... Kd8 {[%clk 0:00:03.1]} 41. Rxf7 {[%clk 0:00:38.7]} 41... Kc8
{[%clk 0:00:03.5]} 42. Re7 {[%clk 0:00:32]} 42... Rd8 {[%clk 0:00:02.7]} 43. f7
{[%clk 0:00:32.5]} 43... Qc6 {[%clk 0:00:02.3]} 44. e6 {[%clk 0:00:23.3]} 44...
d3 {[%clk 0:00:01.6]} 45. Rd7 {[%clk 0:00:21.6]} 1-0

[Event "Early-Titled-Tuesday-Blitz-January-30-2024"]
[Site "Chess.com"]
[Date "2024.01.30"]
[Round "1"]
[White "BashirliSaadat"]
[Black "Paladin61"]
[Result "0-1"]
[WhiteElo "2403"]
[BlackElo "2735"]
[TimeControl "180+1"]
[EndTime "8:07:44 PST"]
[Termination "Paladin61 won by resignation"]

1. e4 {[%clk 0:02:01.8]} 1... e6 {[%clk 0:02:57.4]} 2. d4 {[%clk 0:02:00.5]}
2... d5 {[%clk 0:02:54.8]} 3. Nc3 {[%clk 0:01:59.4]} 3... Nf6 {[%clk 0:02:54.2]}
4. Bg5 {[%clk 0:01:57.9]} 4... dxe4 {[%clk 0:02:47.6]} 5. Nxe4 {[%clk
0:01:56.4]} 5... Be7 {[%clk 0:02:45.8]} 6. Bxf6 {[%clk 0:01:53.1]} 6... gxf6
{[%clk 0:02:44.7]} 7. c3 {[%clk 0:01:50.5]} 7... f5 {[%clk 0:02:40.4]} 8. Nd2
{[%clk 0:01:49.4]} 8... c5 {[%clk 0:02:38.2]} 9. Ngf3 {[%clk 0:01:48.8]} 9...
Nc6 {[%clk 0:02:32.1]} 10. Bb5 {[%clk 0:01:41.2]} 10... Bd7 {[%clk 0:02:31.7]}
11. Qe2 {[%clk 0:01:32.6]} 11... cxd4 {[%clk 0:02:30.4]} 12. Nxd4 {[%clk
0:01:28.2]} 12... Nxd4 {[%clk 0:02:25.1]} 13. cxd4 {[%clk 0:01:18.5]} 13... a6
{[%clk 0:02:19.5]} 14. Bxd7+ {[%clk 0:01:17.3]} 14... Qxd7 {[%clk 0:02:20.4]}
15. Qe3 {[%clk 0:01:06.3]} 15... Rd8 {[%clk 0:02:13.6]} 16. O-O {[%clk
0:00:55.9]} 16... Qxd4 {[%clk 0:02:12.4]} 17. Qxd4 {[%clk 0:00:55.8]} 17... Rxd4
{[%clk 0:02:13.3]} 18. Nf3 {[%clk 0:00:56.3]} 18... Rd7 {[%clk 0:01:35.1]} 19.
Rac1 {[%clk 0:00:54.5]} 19... O-O {[%clk 0:01:24.7]} 20. Ne5 {[%clk 0:00:51.6]}
20... Rd5 {[%clk 0:01:24.2]} 21. Rfe1 {[%clk 0:00:43.4]} 21... Bf6 {[%clk
0:01:11.7]} 22. Nf3 {[%clk 0:00:29.4]} 22... Bxb2 {[%clk 0:00:59.2]} 23. Rb1
{[%clk 0:00:27.2]} 23... Rb5 {[%clk 0:00:58.3]} 24. a4 {[%clk 0:00:22.6]} 24...
Rb4 {[%clk 0:00:57.6]} 25. a5 {[%clk 0:00:11.3]} 25... Rd8 {[%clk 0:00:49.5]}
26. h3 {[%clk 0:00:08.4]} 26... Rb5 {[%clk 0:00:40.2]} 27. Kh2 {[%clk
0:00:05.5]} 27... Rd3 {[%clk 0:00:30.7]} 28. Ng5 {[%clk 0:00:04.8]} 28... Rdb3
{[%clk 0:00:21.8]} 29. Nf3 {[%clk 0:00:03.6]} 29... Be5+ {[%clk 0:00:19.9]} 30.
Nxe5 {[%clk 0:00:03.2]} 30... Rxb1 {[%clk 0:00:20.3]} 31. Re2 {[%clk 0:00:03]}
31... R1b2 {[%clk 0:00:18.5]} 32. Re3 {[%clk 0:00:02.4]} 32... f4 {[%clk
0:00:16.8]} 33. Re4 {[%clk 0:00:00.8]} 33... Rxa5 {[%clk 0:00:11.9]} 34. Ng4
{[%clk 0:00:01.1]} 34... f5 {[%clk 0:00:09.8]} 35. Nf6+ {[%clk 0:00:00.5]} 35...
Kf7 {[%clk 0:00:09.5]} 36. Rxe6 {[%clk 0:00:01.3]} 36... Kxe6 {[%clk 0:00:09.5]}
0-1

[Event "Early-Titled-Tuesday-Blitz-January-30-2024"]
[Site "Chess.com"]
[Date "2024.01.30"]
[Round "1"]
[White "Ron_Weasley_Chess"]
[Black "Eagle_2019"]
[Result "0-1"]
[WhiteElo "2449"]
[BlackElo "2802"]
[TimeControl "180+1"]
[EndTime "8:07:45 PST"]
[Termination "Eagle_2019 won by resignation"]

1. e4 {[%clk 0:03:00.9]} 1... d5 {[%clk 0:02:57.2]} 2. exd5 {[%clk 0:02:50.2]}
2... c6 {[%clk 0:02:56.5]} 3. d4 {[%clk 0:02:46.6]} 3... cxd5 {[%clk 0:02:54.4]}
4. Bd3 {[%clk 0:02:46.7]} 4... Nc6 {[%clk 0:02:51.9]} 5. c3 {[%clk 0:02:46]}
5... Nf6 {[%clk 0:02:48.6]} 6. Bf4 {[%clk 0:02:44.3]} 6... g6 {[%clk 0:02:39.1]}
7. Ne2 {[%clk 0:02:43.7]} 7... Bg7 {[%clk 0:02:36]} 8. O-O {[%clk 0:02:42.6]}
8... O-O {[%clk 0:02:36.1]} 9. Nd2 {[%clk 0:02:38.5]} 9... Nh5 {[%clk
0:02:35.1]} 10. Nf3 {[%clk 0:02:26]} 10... Nxf4 {[%clk 0:02:31]} 11. Nxf4 {[%clk
0:02:26.9]} 11... Qd6 {[%clk 0:02:18.5]} 12. Ne2 {[%clk 0:02:04.5]} 12... f6
{[%clk 0:02:14.3]} 13. Ng3 {[%clk 0:01:51.4]} 13... Bg4 {[%clk 0:02:12.6]} 14.
h3 {[%clk 0:01:47.3]} 14... Bxf3 {[%clk 0:02:12]} 15. Qxf3 {[%clk 0:01:48.2]}
15... e5 {[%clk 0:02:10.4]} 16. dxe5 {[%clk 0:01:38.8]} 16... fxe5 {[%clk
0:02:06.4]} 17. Qd1 {[%clk 0:01:39.1]} 17... Rad8 {[%clk 0:02:04.1]} 18. Qb3
{[%clk 0:01:32.4]} 18... Qc7 {[%clk 0:02:01.6]} 19. Rad1 {[%clk 0:01:24.6]}
19... Kh8 {[%clk 0:01:54.3]} 20. Be2 {[%clk 0:01:19.7]} 20... Qf7 {[%clk
0:01:48.2]} 21. Rd2 {[%clk 0:01:03.1]} 21... e4 {[%clk 0:01:43.4]} 22. c4 {[%clk
0:00:45.9]} 22... Nd4 {[%clk 0:01:27.9]} 23. Qe3 {[%clk 0:00:43.2]} 23... dxc4
{[%clk 0:01:27]} 24. Nxe4 {[%clk 0:00:43.1]} 24... Nf5 {[%clk 0:01:25.4]} 25.
Qf4 {[%clk 0:00:25.9]} 25... Qe7 {[%clk 0:01:18.9]} 26. Rxd8 {[%clk 0:00:20.5]}
26... Rxd8 {[%clk 0:01:18.4]} 27. Bxc4 {[%clk 0:00:20.8]} 27... Rd4 {[%clk
0:01:16.4]} 28. Qb8+ {[%clk 0:00:20.8]} 28... Qf8 {[%clk 0:01:11.6]} 29. Qxb7
{[%clk 0:00:12.4]} 29... Rxc4 {[%clk 0:01:10.2]} 30. Ng5 {[%clk 0:00:12.9]}
30... Qe8 {[%clk 0:00:53.9]} 31. Nf7+ {[%clk 0:00:12.4]} 31... Kg8 {[%clk
0:00:53.1]} 32. Nd6 {[%clk 0:00:13.1]} 32... Nxd6 {[%clk 0:00:51]} 33. Qd5+
{[%clk 0:00:11.6]} 33... Qf7 {[%clk 0:00:50.5]} 34. Qxd6 {[%clk 0:00:11.6]}
34... h5 {[%clk 0:00:43.7]} 35. Re1 {[%clk 0:00:10]} 35... Rc2 {[%clk
0:00:42.1]} 36. Qd8+ {[%clk 0:00:05]} 36... Kh7 {[%clk 0:00:40.8]} 37. Rf1
{[%clk 0:00:05.9]} 37... Rxb2 {[%clk 0:00:39.2]} 38. a4 {[%clk 0:00:06.4]} 38...
Ra2 {[%clk 0:00:37.9]} 39. Qa5 {[%clk 0:00:04.8]} 39... Bd4 {[%clk 0:00:35.4]}
40. Qd8 {[%clk 0:00:02.5]} 40... Bxf2+ {[%clk 0:00:30.1]} 41. Kh1 {[%clk
0:00:02.6]} 41... Re2 {[%clk 0:00:23.2]} 42. Qd3 {[%clk 0:00:03]} 42... Qe7
{[%clk 0:00:21.1]} 43. Qc4 {[%clk 0:00:02.1]} 43... Re1 {[%clk 0:00:19.9]} 44.
Kh2 {[%clk 0:00:02.1]} 44... Rxf1 {[%clk 0:00:19.5]} 45. Qxf1 {[%clk 0:00:03]}
45... Qe5+ {[%clk 0:00:19.6]} 46. Kh1 {[%clk 0:00:03.7]} 46... Qe1 {[%clk
0:00:19.3]} 0-1

[Event "Early-Titled-Tuesday-Blitz-January-30-2024"]
[Site "Chess.com"]
[Date "2024.01.30"]
[Round "1"]
[White "kamilianin235"]
[Black "Seochesspie"]
[Result "1-0"]
[WhiteElo "2512"]
[BlackElo "2873"]
[TimeControl "180+1"]
[EndTime "8:07:47 PST"]
[Termination "kamilianin235 won by resignation"]

1. e4 {[%clk 0:03:00.9]} 1... d6 {[%clk 0:03:00.9]} 2. d4 {[%clk 0:02:59.7]}
2... Nf6 {[%clk 0:03:01.5]} 3. Nc3 {[%clk 0:02:58.3]} 3... Nc6 {[%clk
0:03:01.8]} 4. Nf3 {[%clk 0:02:57.5]} 4... g6 {[%clk 0:03:01.6]} 5. Bc4 {[%clk
0:02:51.6]} 5... Bg7 {[%clk 0:02:58.3]} 6. O-O {[%clk 0:02:51]} 6... Nxe4 {[%clk
0:02:53.8]} 7. Bxf7+ {[%clk 0:02:40.9]} 7... Kxf7 {[%clk 0:02:54.7]} 8. Nxe4
{[%clk 0:02:41.1]} 8... Rf8 {[%clk 0:02:49.5]} 9. d5 {[%clk 0:02:32.4]} 9... Ne5
{[%clk 0:02:48.8]} 10. Nxe5+ {[%clk 0:02:27.2]} 10... Bxe5 {[%clk 0:02:49.7]}
11. Bh6 {[%clk 0:02:25.5]} 11... Bg7 {[%clk 0:02:48.3]} 12. Ng5+ {[%clk
0:02:14.3]} 12... Kg8 {[%clk 0:02:48.2]} 13. Bxg7 {[%clk 0:02:14.8]} 13... Kxg7
{[%clk 0:02:49.1]} 14. Qd4+ {[%clk 0:02:14.9]} 14... Kg8 {[%clk 0:02:47.4]} 15.
Rae1 {[%clk 0:02:13.5]} 15... e5 {[%clk 0:02:45]} 16. Qh4 {[%clk 0:01:42.8]}
16... h5 {[%clk 0:02:44.7]} 17. f4 {[%clk 0:01:41.4]} 17... Rxf4 {[%clk
0:02:40]} 18. Rxf4 {[%clk 0:01:42.3]} 18... exf4 {[%clk 0:02:40.6]} 19. Qxf4
{[%clk 0:01:41.1]} 19... Bf5 {[%clk 0:02:40.8]} 20. c4 {[%clk 0:01:29.9]} 20...
Qf6 {[%clk 0:02:35.4]} 21. Ne6 {[%clk 0:01:26.7]} 21... Re8 {[%clk 0:02:28.9]}
22. Re2 {[%clk 0:01:22.5]} 22... Re7 {[%clk 0:02:20.2]} 23. Rf2 {[%clk
0:01:21.1]} 23... Qf7 {[%clk 0:02:03.4]} 24. Nd4 {[%clk 0:01:13]} 24... Re1+
{[%clk 0:02:02.5]} 25. Rf1 {[%clk 0:01:13.1]} 25... Rxf1+ {[%clk 0:02:01.7]} 26.
Qxf1 {[%clk 0:01:10.7]} 26... Bd7 {[%clk 0:01:53.1]} 27. Qxf7+ {[%clk
0:01:06.8]} 27... Kxf7 {[%clk 0:01:54]} 28. Kf2 {[%clk 0:01:05.6]} 28... g5
{[%clk 0:01:53.8]} 29. Ke3 {[%clk 0:01:04.3]} 29... Kf6 {[%clk 0:01:53.8]} 30.
Ke4 {[%clk 0:00:56.1]} 30... a6 {[%clk 0:01:50.9]} 31. b3 {[%clk 0:00:52.3]}
31... h4 {[%clk 0:01:49.6]} 32. a3 {[%clk 0:00:48.8]} 32... Be8 {[%clk
0:01:49.1]} 33. g3 {[%clk 0:00:41.9]} 33... hxg3 {[%clk 0:01:48.3]} 34. hxg3
{[%clk 0:00:41.5]} 34... Bg6+ {[%clk 0:01:47.1]} 35. Ke3 {[%clk 0:00:42]} 35...
Bf7 {[%clk 0:01:47.1]} 36. Ke4 {[%clk 0:00:41.8]} 36... Be8 {[%clk 0:01:40.8]}
37. Ke3 {[%clk 0:00:40.7]} 37... Ke5 {[%clk 0:01:31.7]} 38. Ne6 {[%clk
0:00:38.9]} 38... c6 {[%clk 0:01:22.5]} 39. dxc6 {[%clk 0:00:38.1]} 39... bxc6
{[%clk 0:01:17]} 40. Nxg5 {[%clk 0:00:38.1]} 40... d5 {[%clk 0:01:15.3]} 41.
cxd5 {[%clk 0:00:37.6]} 41... Kxd5 {[%clk 0:01:08.4]} 42. Nf3 {[%clk 0:00:38.3]}
42... c5 {[%clk 0:01:07.4]} 43. Nd2 {[%clk 0:00:36.8]} 43... a5 {[%clk
0:01:06.1]} 44. a4 {[%clk 0:00:35.6]} 44... c4 {[%clk 0:00:51.6]} 45. Nxc4
{[%clk 0:00:28.6]} 45... Kc5 {[%clk 0:00:52]} 46. Kd3 {[%clk 0:00:23.6]} 46...
Kb4 {[%clk 0:00:50]} 47. Kc2 {[%clk 0:00:24.3]} 47... Bd7 {[%clk 0:00:46]} 48.
Ne5 {[%clk 0:00:23.4]} 48... Be6 {[%clk 0:00:43.1]} 49. Nd3+ {[%clk 0:00:23.9]}
49... Ka3 {[%clk 0:00:43.2]} 50. Nc5 {[%clk 0:00:23.8]} 50... Bg4 {[%clk
0:00:38.9]} 51. Kc3 {[%clk 0:00:24]} 51... Bc8 {[%clk 0:00:37]} 52. Nd3 {[%clk
0:00:22.4]} 52... Be6 {[%clk 0:00:35.9]} 53. Nc5 {[%clk 0:00:20.5]} 53... Bc8
{[%clk 0:00:35.9]} 54. g4 {[%clk 0:00:21.2]} 54... Bxg4 {[%clk 0:00:35.5]} 55.
Nb7 {[%clk 0:00:21.9]} 55... Bd7 {[%clk 0:00:27.3]} 56. Nxa5 {[%clk 0:00:18.5]}
56... Bxa4 {[%clk 0:00:28.2]} 57. Nc4+ {[%clk 0:00:18.7]} 1-0